Cogmind - Beta 13 X2 @@@ ROGUE MODE // 2024.01.17 @ 20:52:31 Player: IzRey Result: Destroyed by S-43 Plague with Heavy Machine Gun Performance ------------- Evolutions (7) 3500 Regions Visited (14) 2800 Robots Destroyed (290) 1450 Value Destroyed (11608) 11608 Prototype IDs (38) 760 Alien Tech Used (5) 1000 Bonus (6209) 6209 TOTAL SCORE: 27327 Bonus ------- High Alert Combat Kills 2369 Follower Combat Kills 540 Met Zhirov 300 Found Hidden Lab 3000 Cogmind --------- Core Integrity 0/1300 Matter 281/300 Energy 98/100 System Corruption 26% Temperature Cool (0) Movement Core (50) Location -3/Research Parts ------- > --- POWER (1) -------- (None) > --- PROPULSION (6) --- (None) > --- UTILITY (11) ----- (None) > --- WEAPON (3) ------- (None) > --- INVENTORY (5) ---- Advanced Energy Well (500) Improved Matter Compressor (21) Heavy Machine Gun Hypervelocity Coil Gun Vibroblade Peak State ------------ > --- POWER ------------ Graviton Reactor > --- PROPULSION ------- Advanced Medium Treads Centrium Wheel > --- UTILITY ---------- Experimental Power Amplifier Huge Storage Unit Experimental Optical Array Advanced Signal Interpreter Advanced Salvage Targeting Computer Improved Target Analyzer Hacking Suite Experimental Hacking Suite LC Capacitor > --- WEAPON ----------- KE Penetrator Vibroblade > --- INVENTORY -------- Light Antimatter Reactor Myomer Leg Advanced Energy Well Experimental Energy Well Improved Matter Compressor Advanced Gravity Neutralizer Advanced Phase Shifter Experimental Core Shielding Medium Regenerative Plating Heavy Regenerative Plating Advanced Thermal Defense Suite Point Defense System Deep Network Scanner Core Regenerator KE Penetrator KE Penetrator KE Penetrator Hypervelocity Coil Gun Fusion Bomb Launcher Guided Remote Datajack Power Sword [Rating: 141] Favorites ----------- Power Fission Core Engine Heavy Ion Engine Power Core Fission Core Reactor Heavy Antimatter Reactor Propulsion Advanced Myomer Leg Treads Light Treads Leg Advanced Myomer Leg Wheel Centrium Wheel Hover Unit Improved Antigrav System Flight Unit Xenon Bombardment Thruster Utility Advanced Targeting Computer Device Structural Scanner Storage Huge Storage Unit Processor Advanced Targeting Computer Hackware Advanced Hacking Suite Protection Improved Light Armor Plating Artifact LC Capacitor Weapon KE Penetrator Energy Gun Phase Gun Energy Cannon Matter Neutralizer Ballistic Gun KE Penetrator Launcher Missile Launcher Special Weapon Guided Remote Datajack Impact Weapon Great Maul Slashing Weapon Power Sword Build | -11 -10 -9 -8 -7 -6 -5 -5 -5 -5 -4 -4 -4 -4 -3 ------- Run | Yrd Mat Mat Mat Fac Fac Fac Upp Upp Zhi Pro Fac Arm Lab Res Slots Evolved 14 | . . 2 2 2 2 2 . . . . 2 . . 2 Power . | . . . . . . . . . . . . . . . Propulsion 4 | . . 1 1 . . . . . . . 1 . . 1 Utility 9 | . . 1 . 2 2 2 . . . . 1 . . 1 Weapon 1 | . . . 1 . . . . . . . . . . . Parts Attached 512 | . 6 33 42 40 64 68 6 5 19 16 108 63 15 27 Power 24 | . 1 2 2 2 4 2 . . 2 . 4 2 2 1 Engine 8 | . 1 2 2 1 2 . . . . . . . . . Core 8 | . . . . 1 2 2 . . 1 . 1 1 . . Reactor 8 | . . . . . . . . . 1 . 3 1 2 1 Propulsion 99 | . 1 10 7 10 13 5 . . 4 . 20 21 . 8 Treads 25 | . . 6 6 5 . 4 . . . . 1 3 . . Leg 61 | . 1 . . 4 13 1 . . 4 . 19 17 . 2 Wheel 7 | . . 4 1 1 . . . . . . . 1 . . Hover 2 | . . . . . . . . . . . . . . 2 Flight 4 | . . . . . . . . . . . . . . 4 Utility 198 | . 2 5 9 8 26 45 2 2 5 11 50 17 8 8 Device 108 | . 1 1 2 5 15 31 1 1 1 9 30 7 2 2 Storage 11 | . 1 1 . . . 2 . . 2 . 2 2 1 . Processor 17 | . . 2 1 . 5 5 . . . . 2 1 . 1 Hackware 5 | . . . . . . . . . . . 1 1 2 1 Protection 56 | . . 1 6 3 6 7 1 1 2 2 15 6 3 3 Artifact 1 | . . . . . . . . . . . . . . 1 Weapon 191 | . 2 16 24 20 21 16 4 3 8 5 34 23 5 10 Energy Gun 5 | . 1 . . . 1 . . . . 2 1 . . . Energy Cannon 1 | . . . . . . . . . . . 1 . . . Ballistic Gun 112 | . 1 11 13 10 12 9 2 1 5 2 21 16 3 6 Ballistic Cannon . | . . . . . . . . . . . . . . . Launcher 10 | . . . . 3 . 1 . . 2 . . 3 . 1 Special Weapon 1 | . . . . . . . . . . . . . . 1 Impact Weapon 27 | . . 5 11 7 4 . . . . . . . . . Slashing Weapon 35 | . . . . . 4 6 2 2 1 1 11 4 2 2 Piercing Weapon . | . . . . . . . . . . . . . . . Special Melee Weapon . | . . . . . . . . . . . . . . . Unidentified Prototypes 29 | . . 1 . . 2 1 . . 6 . 3 1 9 6 Corrupted Parts 1 | . . . . . 1 . . . . . . . . . System Corruption 4 | . . . . . 4 . . . . . . . . . Parts Lost 122 | . 1 1 4 12 12 5 . . . 1 31 18 5 32 Power 10 | . 1 . . 1 1 1 . . . . 2 1 1 2 Propulsion 40 | . . . 3 5 5 1 . . . . 12 3 2 9 Utility 39 | . . . . 2 3 2 . . . . 10 8 2 12 Weapon 33 | . . 1 1 4 3 1 . . . 1 7 6 . 9 Highest Loss Streak 21 | . 1 1 1 6 5 2 . . . 1 10 12 3 21 To Critical Strikes 2 | . . . . . . . . . . . . 2 . . Average Slot Usage (%) 95 | . 85 98 99 99 98 99 100 100 91 99 98 95 78 59 Engine 2 | . 14 11 9 4 4 . . . . . . . . . Core 1 | . . . . 2 1 4 5 5 4 5 . . . . Reactor 1 | . . . . . . . . . . . 4 3 4 2 Treads 8 | . . 19 31 17 . 6 23 23 7 . . 1 5 1 Leg 14 | . 28 . . 11 25 15 . . 15 23 25 22 . . Wheel 1 | . . 12 3 . . . . . . . . . 5 1 Device 11 | . . 7 2 14 7 16 16 16 10 19 18 9 4 2 Storage 6 | . 14 11 9 7 6 5 5 5 5 5 5 6 5 2 Processor 21 | . . 9 10 4 26 28 29 29 29 25 21 24 21 19 Hackware 2 | . . . . . . . . . . . 4 . 13 8 Protection 2 | . . 3 4 10 4 . . . 4 . 1 6 . 1 Ballistic Gun 12 | . 14 20 23 18 13 11 6 11 3 10 10 12 9 6 Slashing Weapon 2 | . . . . . 3 4 3 . 5 1 3 1 4 3 Naked Turns 2 | . . . . . . . . . . . . . . 2 Heaviest Build 141 | 13 30 57 61 73 83 119 119 118 119 120 138 141 124 130 Greatest Support 140 | 20 20 40 83 83 73 114 114 114 114 110 140 120 16 41 Greatest Overweight (x) 8 | . 1 5 6 6 1 1 1 1 3 1 1 8 7 8 Average Overweight (x) 1 | . . 2 . . . . . . . . . 1 6 2 Largest Inventory Capacity 25 | 8 15 20 20 20 20 25 25 25 25 25 25 25 25 25 Average Capacity 22 | 8 11 18 20 20 20 20 25 25 25 25 25 25 25 16 Most Carried 25 | 6 10 20 20 20 20 21 22 25 25 25 25 25 25 25 Average Carried 20 | 6 8 16 19 17 18 19 21 22 24 24 24 22 20 14 Final Capacity 25 | 8 15 20 20 20 20 25 25 25 25 25 25 25 25 5 Final Carried 25 | 6 9 20 20 16 20 21 22 25 25 24 25 11 25 5 Class Distribution -------------------- 18% | Mutant 17% | Scavenger-Assassin 10% | Assassin 10% | Hacker-Mutant 10% | Gunner 8% | Scavenger-Mutant 6% | Scavenger-Gunner 4% | Infiltrator-Assassin 4% | Skirmisher Dominant Class ---------------- Mutant | -10/Materials Mutant | -9/Materials Skirmisher | -8/Materials Mutant | -7/Factory Scavenger-Assassin | -6/Factory Scavenger-Assassin | -5/Factory Assassin | -5/Upper Caves Gunner | -5/Upper Caves Mutant | -5/Zhirov Gunner | -4/Proximity Caves Assassin | -4/Factory Scavenger-Gunner | -4/Armory Hacker-Mutant | -4/Lab Hacker-Mutant | -3/Research Resources | -11 -10 -9 -8 -7 -6 -5 -5 -5 -5 -4 -4 -4 -4 -3 ----------- Run | Yrd Mat Mat Mat Fac Fac Fac Upp Upp Zhi Pro Fac Arm Lab Res Matter Collected 11742 | 206 151 885 1017 1002 1573 1245 394 132 498 259 2648 1132 90 510 Remotely . | . . . . . . . . . . . . . . . Salvage Created 15009 | 110 414 1295 1434 1011 1558 1712 205 80 423 318 4314 1701 90 344 Parts 797 | 4 30 73 74 62 98 85 9 2 5 21 209 90 11 24 Haulers Intercepted 7 | . . 4 . . . 1 . . . . 2 . . . Recyclers Shooed 13 | . . 1 2 . 4 . . . . . 6 . . . Parts Field Recycled . | . . . . . . . . . . . . . . . Retrieved Matter . | . . . . . . . . . . . . . . . Parts Self-Destructed 33 | . . . . . . . 5 2 4 22 . . . . Prevented . | . . . . . . . . . . . . . . . Kills | -11 -10 -9 -8 -7 -6 -5 -5 -5 -5 -4 -4 -4 -4 -3 ------- Run | Yrd Mat Mat Mat Fac Fac Fac Upp Upp Zhi Pro Fac Arm Lab Res Combat Hostiles Destroyed 206 | . 13 22 27 20 15 16 4 1 . 6 48 26 1 7 Melee 8 | . . . . . 2 . . . . . . . 1 5 Guns 182 | . 12 22 27 18 11 16 1 1 . 6 45 21 . 2 Cannons 1 | . . . . . . . . . . . 1 . . . AOE 15 | . 1 . . 2 2 . 3 . . . 2 5 . . Classes Destroyed 19 | 2 3 3 2 3 . 1 1 . . 1 2 1 . . Worker 30 | . 1 1 3 3 6 5 . . . . 11 . . . Builder 18 | . . . 1 3 9 1 . . . . 4 . . . Tunneler 5 | 1 . . . . 3 . . . . . 1 . . . Hauler 7 | . . 4 . . . 1 . . . . 2 . . . Recycler 17 | 1 . 3 . . 4 5 . . . . 4 . . . Mechanic 3 | . . . . 1 . . . . . . 1 1 . . Operator 1 | . . . . . . 1 . . . . . . . . Drone 1 | . . . . . . . . . . 1 . . . . Watcher 3 | . . 1 1 . 1 . . . . . . . . . Swarmer 33 | . 6 3 3 4 . 4 4 . . . 5 . . 4 Saboteur 1 | . . . . . . . . . . . 1 . . . Grunt 75 | . 7 15 17 10 5 . . . . 2 14 5 . . Brawler 1 | . . . . . . . . . . . 1 . . . Duelist 5 | . . . 1 . 1 . . . . 1 . 2 . . Sentry 25 | . . 4 6 3 1 1 . 1 . . 6 3 . . Demolisher 1 | . . . . . . . . . . . . 1 . . Hunter 16 | . . . . 1 3 . . . . . 6 6 . . Programmer 47 | . . . . 2 5 11 . . . 2 15 9 . 3 Decomposer 3 | . . . . . . . 3 . . . . . . . Packrat 1 | . . . . . . . 1 . . . . . . . Samaritan 1 | . . . . . . . 1 . . . . . . . Best Kill Streak 13 | 2 3 4 6 8 12 5 4 1 . 3 13 7 1 2 Combat Bots Only 11 | . 3 3 3 7 4 4 4 1 . 3 11 6 1 2 Max Kills in Single Turn 6 | 1 1 1 2 4 6 2 2 1 . 1 6 2 1 1 Gunslinging 1 | . . . . . . 1 . . . . 1 . . . Exploded 2 | . 1 . . 1 2 . 2 . . . 2 1 . . Melee 1 | . . . . . 1 . . . . . . . 1 1 Uniques/NPCs Destroyed 1 | . . . . . . . . . . . . . 1 . A5 (-4/Lab) Combat | -11 -10 -9 -8 -7 -6 -5 -5 -5 -5 -4 -4 -4 -4 -3 -------- Run | Yrd Mat Mat Mat Fac Fac Fac Upp Upp Zhi Pro Fac Arm Lab Res Hostile Shots Fired 2106 | . 58 79 99 247 193 104 14 10 . 37 553 285 62 365 Missed 642 | . 15 26 28 68 45 29 1 3 . 10 187 91 12 127 Damage Taken 26489 | . 492 615 1103 2421 2288 1339 229 154 . 611 6818 4214 1301 4904 Core 3679 | . 159 80 115 170 265 241 14 23 . 92 670 332 78 1440 Absorbed by Shields 128 | . . . . . 128 . . . . . . . . . Redirected to Shielding 37 | . . . . . . . . . . . . . . 37 Ignored by Resistances 784 | . . . . 40 90 161 . . . 21 472 . . . Regen/Repaired (Parts) 337 | . . . . . . . . . . . 170 . 14 153 Core Remaining (%) 63 | 100 36 80 79 75 68 . . . . 63 . . 5 . Volleys Fired 610 | 6 36 79 63 70 61 48 5 5 . 11 130 71 14 11 Largest 3 | 2 2 2 3 3 3 3 3 3 . 3 3 3 3 2 Hottest 170 | 60 60 60 71 84 103 91 97 91 . 149 170 120 101 66 Shots Fired 1589 | 12 72 158 189 196 138 141 9 14 1 32 377 193 38 19 Gun 1567 | 12 72 158 189 194 138 141 4 14 1 30 371 188 38 17 Cannon 6 | . . . . . . . . . . . 6 . . . Launcher 14 | . . . . 2 . . 5 . . 2 . 5 . . Special 2 | . . . . . . . . . . . . . . 2 Kinetic 1504 | 6 36 156 189 194 133 141 4 14 1 22 365 188 38 17 Thermal 20 | . . . . . . . . . . 8 12 . . . Explosive 14 | . . . . 2 . . 5 . . 2 . 5 . . Electromagnetic 49 | 6 36 2 . . 5 . . . . . . . . . Robot Hit Streak 21 | 4 16 21 16 15 13 14 1 9 10 12 20 21 7 3 Robot Miss Streak 7 | 3 3 2 3 7 3 2 4 1 . 1 5 4 5 3 Penetration Max 2 | . . . . 1 1 1 . . . . 2 1 . . Secondary Targets 35 | . 1 1 3 4 3 3 . . . 2 14 4 . . Max Gunslinging Chain 2 | . 1 1 1 1 1 1 . . . 1 2 1 . . Shots Hit Robots 1192 | 6 42 114 141 129 112 104 9 9 12 25 294 136 35 24 Core Hits 567 | 3 20 49 65 51 58 42 8 2 5 14 147 83 9 11 Critical Kills 19 | . . . 1 . 2 2 . 1 . 1 9 3 . . Critical Parts Destroyed 40 | . . . 1 3 3 6 . . . 3 17 6 1 . Critical Strikes 68 | . . . 2 3 5 8 . 2 . 5 27 9 5 2 Burn 1 | . . . . . . . . . . 1 . . . . Destroy 59 | . . . 2 2 4 8 . 2 . 4 26 9 2 . Smash 2 | . . . . 1 1 . . . . . . . . . Sever 6 | . . . . . . . . . . . 1 . 3 2 Melee Attacks 563 | . . 13 28 23 74 74 10 . 11 2 83 9 180 56 Impact 84 | . . 13 28 23 20 . . . . . . . . . Slashing 479 | . . . . . 54 74 10 . 11 2 83 9 180 56 Piercing . | . . . . . . . . . . . . . . . Sneak Attacks 49 | . . . 1 1 14 10 7 . . . 15 . . 1 Combat Hostiles . | . . . . . . . . . . . . . . . Follow-up Attacks . | . . . . . . . . . . . . . . . Damage Inflicted 34984 | 69 719 1621 2381 2857 4538 3325 866 202 913 643 9528 5047 1326 949 Guns 23915 | 69 486 1621 2313 2391 2078 2461 22 202 50 613 7672 3503 206 228 Cannons 107 | . . . . . . . . . . . 107 . . . Explosions 3934 | . 233 . . 348 1065 19 270 . . 30 471 1498 . . Melee 7010 | . . . 68 118 1395 845 574 . 863 . 1278 46 1102 721 Ramming 18 | . . . . . . . . . . . . . 18 . Kinetic 23305 | 19 164 1606 2313 2391 2043 2461 22 202 50 478 7619 3503 206 228 Thermal 851 | . 233 . . . . . . . . 135 483 . . . Explosive 3194 | . . . . 348 1048 . 270 . . 30 . 1498 . . Electromagnetic 606 | 50 322 15 . . 52 19 . . . . 148 . . . Impact 369 | . . . 68 118 183 . . . . . . . . . Slashing 6641 | . . . . . 1212 845 574 . 863 . 1278 46 1102 721 Piercing . | . . . . . . . . . . . . . . . Highest Corruption 39 | . . . . 5 11 4 2 2 2 2 10 25 39 26 Average Corruption 9 | . . . . 1 7 1 2 2 2 2 3 13 38 18 Corruption Purged 18 | . . . . 3 5 10 . . . . . . . . Corruption Blocked . | . . . . . . . . . . . . . . . Effects 387 | . . . . 20 84 25 18 17 5 11 42 61 90 14 Message Errors 102 | . . . . 6 21 7 3 4 1 3 12 17 27 1 Matter Fused 74 | . . . . 3 23 5 8 2 2 . 15 10 6 . Heat Flow Errors 50 | . . . . 2 9 5 . . . 3 4 10 15 2 Energy Discharges 52 | . . . . 1 15 4 4 4 . 2 1 6 13 2 Parts Rejected 5 | . . . . . 1 1 . . . . 1 2 . . Parts Fused 3 | . . . . . . . . . . . 1 1 1 . Data Loss (minor) 44 | . . . . 3 7 2 2 4 1 3 4 2 13 3 Data Loss (major) 15 | . . . . 1 3 . . 1 . . 1 3 6 . Misfires 11 | . . . . 3 3 . . 2 1 . . 2 . . Alerts 11 | . . . . . 1 1 1 . . . . 2 5 1 Misdirections 7 | . . . . . . . . . . . . 2 . 5 Weapon Failures 13 | . . . . 1 1 . . . . . 3 4 4 . Overload Shots . | . . . . . . . . . . . . . . . Overflow Damage 1614 | . 13 . 48 159 414 153 269 . 101 . 302 61 72 22 Projectiles 9 | . . . . . . . . . . . 9 . . . Explosions 199 | . 13 . . 41 43 . . . . . 41 61 . . Melee 1406 | . . . 48 118 371 153 269 . 101 . 252 . 72 22 Knockbacks 3 | . . . 1 1 1 . . . . . . . . . Impact 3 | . . . 1 1 1 . . . . . . . . . Kinetic . | . . . . . . . . . . . . . . . Secondary . | . . . . . . . . . . . . . . . Self-Inflicted Damage 413 | . 42 . . . 77 18 41 . . 45 . 190 . . Shots 11 | . 1 . . . 2 1 1 . . 2 . 4 . . Rammed 3 | . . . . . . . . . . . . . 3 . Targets Rammed 3 | . . . . . . . . . . . . . 3 . Kicked . | . . . . . . . . . . . . . . . Crushed . | . . . . . . . . . . . . . . . Highest Temperature 522 | 40 147 2 99 522 336 177 6 48 . 166 209 254 230 198 Average Temperature 70 | 17 42 2 27 116 100 41 4 26 . 49 49 95 99 94 Received Heat Transfer 3480 | . 189 258 594 774 195 45 . 36 . 123 1011 189 . 66 Effects 12 | . . . . 8 4 . . . . . . . . . Shutdowns 2 | . . . . 2 . . . . . . . . . . Interference 3 | . . . . . 3 . . . . . . . . . Short Circuit 2 | . . . . 2 . . . . . . . . . . Damage (minor) 2 | . . . . 1 1 . . . . . . . . . Damage (major) 3 | . . . . 3 . . . . . . . . . . Siege Activations 1 | . . . . . . . . . . . . . 1 . Total Turns 7 | . . . . . . . . . . . . . 7 . Longest Duration 7 | . . . . . . . . . . . . . 7 . Robots Corrupted . | . . . . . . . . . . . . . . . Combat Hostiles . | . . . . . . . . . . . . . . . Parts Fried 12 | 1 2 . 1 1 7 . . . . . . . . . Impact Corruptions 11 | . . . 2 4 5 . . . . . . . . . Robots Melted . | . . . . . . . . . . . . . . . Combat Hostiles . | . . . . . . . . . . . . . . . Parts Melted . | . . . . . . . . . . . . . . . Heat Transferred 1094 | . 300 . . . . . . . . 259 535 . . . Parts Sabotaged 3 | . . . . . . . . . . . . 3 . . Parts Stolen . | . . . . . . . . . . . . . . . Parts Stripped . | . . . . . . . . . . . . . . . Power Chain Reactions 3 | . 3 . . . . . . . . . . . . . Missiles Intercepted . | . . . . . . . . . . . . . . . Alert | -11 -10 -9 -8 -7 -6 -5 -5 -5 -5 -4 -4 -4 -4 -3 ------- Run | Yrd Mat Mat Mat Fac Fac Fac Upp Upp Zhi Pro Fac Arm Lab Res Peak Influence 1240 | 10 276 607 776 569 338 277 . . . . 1240 1191 . 139 Initial 607 | . 6 111 256 333 126 156 . . . . 150 607 . . Average 299 | 3 142 350 611 324 180 109 . . . . 284 786 . 51 Maximum Alert Level 4 | . 1 2 3 2 1 1 . . . . 4 4 . . Low Security (%) 44 | 100 59 24 . 1 49 87 . . . . 55 . . 100 Level 1 31 | . 40 28 12 93 50 12 . . . . 28 . . . Level 2 13 | . . 46 58 4 . . . . . . 2 51 . . Level 3 8 | . . . 28 . . . . . . . 9 43 . . Level 4 1 | . . . . . . . . . . . 5 4 . . Level 5 . | . . . . . . . . . . . . . . . High Security . | . . . . . . . . . . . . . . . Max Security . | . . . . . . . . . . . . . . . Squads Dispatched 52 | . 3 5 6 4 7 5 . . . . 11 9 . 2 Investigation 11 | . 2 4 . 1 2 . . . . . 2 . . . Extermination 21 | . . . . 2 4 5 . . . . 5 4 . 1 Reinforcement 13 | . 1 1 2 1 1 . . . . . 3 3 . 1 Assault 3 | . . . . . . . . . . . 1 2 . . Garrison 4 | . . . 4 . . . . . . . . . . . Intercept . | . . . . . . . . . . . . . . . Searches Triggered . | . . . . . . . . . . . . . . . Construction Impeded 3 | . . . . . 1 . . . . . 2 . . . Haulers Reinforced . | . . . . . . . . . . . . . . . Active Scanning Responses . | . . . . . . . . . . . . . . . Cargo Convoy Interrupts . | . . . . . . . . . . . . . . . Stealth | -11 -10 -9 -8 -7 -6 -5 -5 -5 -5 -4 -4 -4 -4 -3 --------- Run | Yrd Mat Mat Mat Fac Fac Fac Upp Upp Zhi Pro Fac Arm Lab Res Distress Signals 14 | . 1 3 3 1 1 . . . . . 3 2 . . Communications Jammed 12 | . . . . . . . . . . 2 10 . . . Distress Signals 10 | . . . . . . . . . . . 10 . . . Times Spotted 351 | . 22 37 46 36 18 24 4 1 . 7 64 52 1 39 Peak Tracking Total 12 | . 4 5 7 5 5 4 4 1 . 3 9 6 1 12 Tactical Retreats 21 | . 2 2 . 2 . 1 . . . . 3 . . 11 Traps | -11 -10 -9 -8 -7 -6 -5 -5 -5 -5 -4 -4 -4 -4 -3 ------- Run | Yrd Mat Mat Mat Fac Fac Fac Upp Upp Zhi Pro Fac Arm Lab Res Traps Triggered 13 | . 1 1 . 3 2 2 . . . . 1 1 . 2 Indirectly . | . . . . . . . . . . . . . . . Trap Hack Attempts . | . . . . . . . . . . . . . . . Triggered . | . . . . . . . . . . . . . . . Disarmed . | . . . . . . . . . . . . . . . Reprogrammed . | . . . . . . . . . . . . . . . Reused . | . . . . . . . . . . . . . . . Traps Extracted . | . . . . . . . . . . . . . . . Installed . | . . . . . . . . . . . . . . . Triggered 1 | . . . . . . . . . . 1 . . . . Machines | -11 -10 -9 -8 -7 -6 -5 -5 -5 -5 -4 -4 -4 -4 -3 ---------- Run | Yrd Mat Mat Mat Fac Fac Fac Upp Upp Zhi Pro Fac Arm Lab Res Machines Disabled 55 | . . 3 2 2 7 4 . . . . 12 10 14 1 Max in Single Turn 3 | . . 1 1 1 2 1 . . . . 3 2 1 1 Garrison Access 1 | . . . . . . . . . . . 1 . . . Machines Repaired . | . . . . . . . . . . . . . . . Machines Dismantled . | . . . . . . . . . . . . . . . Machines Sabotaged . | . . . . . . . . . . . . . . . Overloaded Fab Kills . | . . . . . . . . . . . . . . . Hacking | -11 -10 -9 -8 -7 -6 -5 -5 -5 -5 -4 -4 -4 -4 -3 --------- Run | Yrd Mat Mat Mat Fac Fac Fac Upp Upp Zhi Pro Fac Arm Lab Res Machines Accessed 80 | . 3 9 10 3 10 12 1 . 9 . 15 4 3 1 Terminals 44 | . 2 7 8 3 6 8 . . . . 7 3 . . Fabricators 7 | . . . . . 3 1 . . . . 2 1 . . Repair Stations 7 | . . . . . . 1 . . . . 5 . . 1 Recycling Units 6 | . 1 2 1 . 1 1 . . . . . . . . Scanalyzers . | . . . . . . . . . . . . . . . Garrison Access 3 | . . . 1 . . 1 . . . . 1 . . . Total Hacks 237 | . 7 31 31 6 20 27 1 . 48 . 32 8 23 3 Successful 142 | . 2 13 14 3 8 8 1 . 48 . 19 2 23 1 Failed 94 | . 5 18 17 3 12 19 . . . . 12 6 . 2 Catastrophic 27 | . 1 3 6 3 3 4 . . . . 3 3 . 1 Database Lockouts 1 | . . . . . . . . . . . 1 . . . Manual 81 | . 4 22 16 4 8 17 . . . . 6 2 2 . Terminals 124 | . 6 29 26 6 14 21 . . . . 15 7 . . Fabricators 11 | . . . . . 4 1 . . . . 5 1 . . Repair Stations 14 | . . . . . . 1 . . . . 10 . . 3 Recycling Units 9 | . 1 2 2 . 2 2 . . . . . . . . Scanalyzers . | . . . . . . . . . . . . . . . Garrison Access 7 | . . . 3 . . 2 . . . . 2 . . . Terminal Hacks 106 | . 1 8 10 1 3 3 1 . 48 . 7 1 23 . Record 59 | . . . . . 1 . . . 36 . . . 22 . Part Schematic 4 | . . . . . . . . . 4 . . . . . Robot Analysis 9 | . . 2 2 . . . . . 4 . 1 . . . Prototype ID Bank 7 | . 1 1 1 . . . . . 4 . . . . . Open Door 1 | . . . . . . . 1 . . . . . . . Level Access Points 3 | . . 1 1 . 1 . . . . . . . . . Branch Access Points 3 | . . 1 1 . . . . . . . 1 . . . Terminal Index 2 | . . 1 . . . 1 . . . . . . . . Unreport Threat 2 | . . . . 1 . 1 . . . . . . . . Locate Traps 8 | . . 2 1 . 1 . . . . . 3 1 . . Recall Reinforcements 2 | . . . 2 . . . . . . . . . . . Registered Components 3 | . . . 1 . . 1 . . . . 1 . . . Zone Layout 2 | . . . 1 . . . . . . . 1 . . . Release Object 1 | . . . . . . . . . . . . . 1 . Fabricator Hacks 4 | . . . . . . . . . . . 4 . . . Load Schematic 2 | . . . . . . . . . . . 2 . . . Build 2 | . . . . . . . . . . . 2 . . . Repair Station Hacks 7 | . . . . . . . . . . . 6 . . 1 Scan Component 5 | . . . . . . . . . . . 4 . . 1 Repair 2 | . . . . . . . . . . . 2 . . . Recycling Unit Hacks 1 | . . . . . . 1 . . . . . . . . Retrieve Components 1 | . . . . . . 1 . . . . . . . . Scanalyzer . | . . . . . . . . . . . . . . . Garrison Access Hacks 1 | . . . . . . . . . . . 1 . . . Seal Access 1 | . . . . . . . . . . . 1 . . . Unauthorized Hacks 23 | . 1 5 4 2 5 4 . . . . 1 1 . . Terminals 15 | . . 3 4 2 2 3 . . . . 1 . . . Botnet 14 | . . 3 3 2 2 3 . . . . 1 . . . Disrupt 1 | . . . 1 . . . . . . . . . . . Fabricators 5 | . . . . . 3 1 . . . . . 1 . . Liberate 5 | . . . . . 3 1 . . . . . 1 . . Repair Stations . | . . . . . . . . . . . . . . . Recycling Units 3 | . 1 2 . . . . . . . . . . . . Tunnel 3 | . 1 2 . . . . . . . . . . . . Scanalyzers . | . . . . . . . . . . . . . . . Garrison Access . | . . . . . . . . . . . . . . . Data Cores Recovered 1 | . . . . . . 1 . . . . . . . . Used . | . . . . . . . . . . . . . . . Hacking Detections 58 | . 2 7 9 3 7 11 . . . . 14 4 . 1 Full Trace Events 5 | . . 1 1 . 1 . . . . . 2 . . . Feedback Events . | . . . . . . . . . . . . . . . Feedback Blocked . | . . . . . . . . . . . . . . . Robot Schematics Acquired . | . . . . . . . . . . . . . . . Robots Built . | . . . . . . . . . . . . . . . Authchips . | . . . . . . . . . . . . . . . Time . | . . . . . . . . . . . . . . . Total Robot Build Rating . | . . . . . . . . . . . . . . . Part Schematics Acquired 4 | . . . . . . . . . 4 . . . . . Parts Built 2 | . . . . . . . . . . . 2 . . . Authchips . | . . . . . . . . . . . . . . . Time 280 | . . . . . . . . . . . 280 . . . Total Part Build Rating 14 | . . . . . . . . . . . 14 . . . Parts Repaired 2 | . . . . . . . . . . . 2 . . . Time 72 | . . . . . . . . . . . 72 . . . Parts Recycled . | . . . . . . . . . . . . . . . Recycled Matter . | . . . . . . . . . . . . . . . Retrieved Matter . | . . . . . . . . . . . . . . . Retrieved Components 8 | . . . . . . 8 . . . . . . . . Parts Scanalyzed . | . . . . . . . . . . . . . . . Part Schematics Acquired . | . . . . . . . . . . . . . . . Parts Damaged . | . . . . . . . . . . . . . . . Bothacking | -11 -10 -9 -8 -7 -6 -5 -5 -5 -5 -4 -4 -4 -4 -3 ------------ Run | Yrd Mat Mat Mat Fac Fac Fac Upp Upp Zhi Pro Fac Arm Lab Res Used RIF Installer . | . . . . . . . . . . . . . . . Robots Hacked 2 | . . . . . . . . . . . . . . 2 Non-combat . | . . . . . . . . . . . . . . . Combat 2 | . . . . . . . . . . . . . . 2 Robot Hacks Applied 2 | . . . . . . . . . . . . . . 2 parse_system 2 | . . . . . . . . . . . . . . 2 Relay Couplers Released 3 | . . . . . . . . . . . 3 . . . Programmers 3 | . . . . . . . . . . . 3 . . . Fabnet Peak Effective % . | . . . . . . . . . . . . . . . Robots Rewired 4 | . . . . . . . . . . . . 4 . . Allies Hacked . | . . . . . . . . . . . . . . . Hacks Repelled . | . . . . . . . . . . . . . . . Allies | -11 -10 -9 -8 -7 -6 -5 -5 -5 -5 -4 -4 -4 -4 -3 -------- Run | Yrd Mat Mat Mat Fac Fac Fac Upp Upp Zhi Pro Fac Arm Lab Res Total Allies 6 | . . . . . 2 . . . . . . 4 . . Largest Group 4 | . . . . . 2 . . . . . . 4 . . Highest-Rated Group 224 | . . . . . 82 . . . . . . 224 . . Highest-Rated Ally 56 | . . . . . 41 . . . . . . 56 . . Total Orders 3 | . . . . . 3 . . . . . . . . . EXPLORE 3 | . . . . . 3 . . . . . . . . . Ally Attacks 95 | . . . . . 22 . . . . . . 73 . . Total Damage 2322 | . . . . . 415 . . . . . . 1907 . . Kills 15 | . . . . . 5 . . . . . . 10 . . Allies Corrupted . | . . . . . . . . . . . . . . . Allies Melted . | . . . . . . . . . . . . . . . Intel | -11 -10 -9 -8 -7 -6 -5 -5 -5 -5 -4 -4 -4 -4 -3 ------- Run | Yrd Mat Mat Mat Fac Fac Fac Upp Upp Zhi Pro Fac Arm Lab Res Robot Analysis Total 9 | . . 2 2 . . . . . 4 . 1 . . . Derelict Logs Recovered 4 | . . . . . . . 1 1 . 2 . . . . Drone Launches 5 | . . . . . 3 . . . . . . 2 . . Drone Recoveries 1 | . . . . . 1 . . . . . . . . . Exploration | -11 -10 -9 -8 -7 -6 -5 -5 -5 -5 -4 -4 -4 -4 -3 ------------- Run | Yrd Mat Mat Mat Fac Fac Fac Upp Upp Zhi Pro Fac Arm Lab Res Turns Passed 23030 | 20 596 1421 1325 1659 3162 3154 964 1055 588 1035 3677 1509 2310 555 Spaces Moved 11009 | 3 335 677 565 740 1491 1531 528 617 327 509 2133 519 773 261 Core 13 | . . . . . . . . . . . . . . 13 Treads 2645 | . . 49 456 466 . 421 528 617 108 . . . . . Legs 6549 | 3 335 . . 266 1491 1110 . . 219 509 2133 453 . 30 Wheels 1650 | . . 628 109 8 . . . . . . . 66 773 66 Hover 143 | . . . . . . . . . . . . . . 143 Flight 9 | . . . . . . . . . . . . . . 9 Fastest Speed 41 | 120 120 105 145 160 120 120 165 165 122 122 120 120 210 41 Average Speed 158 | 120 140 141 157 171 160 153 165 166 158 190 125 190 229 125 Slowest Speed 400 | 120 190 240 170 240 192 245 245 245 330 192 192 250 230 400 Overloaded Moves . | . . . . . . . . . . . . . . . Propulsion Burnouts . | . . . . . . . . . . . . . . . Robots Hopped . | . . . . . . . . . . . . . . . Cave-ins Triggered . | . . . . . . . . . . . . . . . Teleports 1 | . . . . . . . . . . . . 1 . . Exploration Rate (%) 50 | 3 59 59 60 18 49 39 71 77 63 69 46 32 100 7 Regions Visited 14 Branch Regions 6 Pre-discovered Areas 6 | . 1 2 . . . . . . 3 . . . . . Known Exits Taken 11 | . . 1 1 . 1 1 1 1 1 1 1 1 1 . Unknown Exits Taken 3 | 1 1 . . 1 . . . . . . . . . . Scrap Searched 4 | . . . . . . . 1 . . 3 . . . . Spaces Dug 272 | . . 13 26 19 48 60 20 . . 2 66 3 3 12 Terrain Destroyed 524 | . 13 13 26 34 90 64 58 2 . 20 117 72 3 12 Melee 255 | . . 13 26 19 48 60 3 . . 2 66 3 3 12 Projectile 57 | . . . . 1 6 4 2 2 . 1 36 5 . . AOE 212 | . 13 . . 14 36 . 53 . . 17 15 64 . . Terrain Rammed . | . . . . . . . . . . . . . . . Walls Destroyed . | . . . . . . . . . . . . . . . Machines Disabled . | . . . . . . . . . . . . . . . Actions | -11 -10 -9 -8 -7 -6 -5 -5 -5 -5 -4 -4 -4 -4 -3 --------- Run | Yrd Mat Mat Mat Fac Fac Fac Upp Upp Zhi Pro Fac Arm Lab Res Total 14359 | 8 393 959 808 941 2025 2109 594 633 380 540 2716 867 1006 380 Wait 1271 | . 10 115 89 47 276 354 43 4 . . 171 143 5 14 Move 10995 | 2 334 676 564 739 1490 1530 527 616 326 508 2132 518 772 261 Hop . | . . . . . . . . . . . . . . . Pick Up 168 | . 3 18 11 13 30 13 2 1 5 . 51 11 6 4 Fast Attach 102 | . 2 5 1 3 7 10 . . 12 3 18 18 9 14 Attach 121 | . 1 3 6 17 17 10 . . 3 1 30 18 5 10 Detach 49 | . 1 5 1 4 3 7 . 2 4 1 5 6 10 . Swap 293 | . 3 25 35 20 40 48 6 5 5 12 60 28 2 4 Drop 163 | . 3 20 10 5 27 15 1 . 14 2 36 24 . 6 Fire 610 | 6 36 79 63 70 61 48 5 5 . 11 130 71 14 11 Melee 563 | . . 13 28 23 74 74 10 . 11 2 83 9 180 56 Ram . | . . . . . . . . . . . . . . . Kick . | . . . . . . . . . . . . . . . Crush 3 | . . . . . . . . . . . . . 3 . Escape Stasis . | . . . . . . . . . . . . . . . Rewire 21 | . . . . . . . . . . . . 21 . . Trap . | . . . . . . . . . . . . . . . Miscellaneous . | . . . . . . . . . . . . . . . Route ------- -11/Scrapyard -10/Materials (discovered 2 exits: *Mat x2) -9/Materials (discovered 6 exits: *Mat x3 / *Min / Sto x2) -8/Materials (discovered 3 exits: *Fac x3) -7/Factory (discovered 2 exits: *Fac / [*Low]) -6/Factory (discovered 4 exits: *Fac x4) -5/Factory (discovered 3 exits: *Fac x2 / *Upp) -5/Upper Caves -5/Upper Caves -5/Zhirov -4/Proximity Caves -4/Factory (discovered 6 exits: *Res / *Upp x2 / Ext x2 / *Arm) -4/Armory -4/Lab -3/Research (discovered 1 exit: Res) History --------- Turn | Location | Event 18 | -11/Scrapyard | Discovered new exit (range 3) 21 | -11/Scrapyard | Entered Materials 309 | -10/Materials | Build established: Mutant 321 | -10/Materials | Discovered new exit (range 14) 556 | -10/Materials | Discovered new exit (range 12) 580 | -10/Materials | Core integrity fell below 50% 617 | -10/Materials | Entered another Materials area 617 | -9/Materials | Evolved 2 slots: Propulsion x1, Utility x1 873 | -9/Materials | Discovered new exit (range 9) 1296 | -9/Materials | Discovered new exit (range 10) 1317 | -9/Materials | Identified exit to Materials 1478 | -9/Materials | Identified exit to Mines 1478 | -9/Materials | Identified exit to Storage 2038 | -9/Materials | Entered another Materials area 2038 | -8/Materials | Evolved 2 slots: Propulsion x1, Weapon x1 2297 | -8/Materials | Garrison activated, responded to threat 2420 | -8/Materials | Discovered new exit (range 15) 2450 | -8/Materials | Identified exit to Factory 2561 | -8/Materials | Garrison activated, responded to threat 3363 | -8/Materials | Entered Factory 3363 | -7/Factory | Evolved 2 slots: Utility x2 4168 | -7/Factory | Discovered new exit (range 6) 4336 | -7/Factory | Lost 6 parts (4n1u1w) 4393 | -7/Factory | Destroyed 7 combat bots 4522 | -7/Factory | Discovered new exit (range 9) 4966 | -7/Factory | Build established: Scavenger-Mutant 5022 | -7/Factory | Entered another Factory area 5022 | -6/Factory | Evolved 2 slots: Utility x2 5193 | -6/Factory | Identified exit to Factory 5643 | -6/Factory | Build established: Mutant 5873 | -6/Factory | Lost 5 parts (1n1u3w) 6598 | -6/Factory | System corruption reached 10% 6652 | -6/Factory | Lost 3 parts (1p2n) 7392 | -6/Factory | Build established: Scavenger-Assassin 8184 | -6/Factory | Entered another Factory area 8184 | -5/Factory | Evolved 2 slots: Utility x2 9721 | -5/Factory | Spotted B-75 Beast 10069 | -5/Factory | Discovered new exit (range 20) 10108 | -5/Factory | Identified exit to Factory 10979 | -5/Factory | Discovered exit to Factory (range 5) 11327 | -5/Factory | Discovered new exit (range 6) 11334 | -5/Factory | Identified exit to Upper Caves 11338 | -5/Factory | Entered Upper Caves 11361 | -5/Upper Caves | Learned location of 1 exit from Proximity Caves 11812 | -5/Upper Caves | Build established: Assassin 12030 | -5/Upper Caves | Discovered new exit (range 19) 12031 | -5/Upper Caves | Encountered a Warlord checkpoint 12059 | -5/Upper Caves | Identified exit to Upper Caves 12302 | -5/Upper Caves | Entered another Upper Caves area 12608 | -5/Upper Caves | Build established: Gunner 13152 | -5/Upper Caves | Discovered new exit (range 15) 13296 | -5/Upper Caves | Learned location of 1 exit from Factory 13313 | -5/Upper Caves | Attracted the attention of an 0b10 checkpoint 13332 | -5/Upper Caves | Identified exit to Zhirov 13357 | -5/Upper Caves | Entered Zhirov 13357 | -5/Zhirov | Discovered new exit (range 3) 13387 | -5/Zhirov | Met Zhirov 13419 | -5/Zhirov | Learned location of Quarantine (-2) 13419 | -5/Zhirov | Learned location of Testing (-3) 13419 | -5/Zhirov | Learned location of Command (-1) 13456 | -5/Zhirov | Zhirov requested help retrieving the SGEMP Prototype 13487 | -5/Zhirov | Found Alien Artifact 13487 | -5/Zhirov | Identified Integrated Dissipator 13487 | -5/Zhirov | Installed Integrated Dissipator, increased core heat dissipation (+20) 13517 | -5/Zhirov | Found Alien Artifact 13653 | -5/Zhirov | Build established: Mutant 13807 | -5/Zhirov | Identified exit to Proximity Caves 13945 | -5/Zhirov | Entered Proximity Caves 13950 | -4/Proximity Caves | Spotter reported a threat 14241 | -4/Proximity Caves | Build established: Gunner 14469 | -4/Proximity Caves | Learned 4 Research zone layouts 14980 | -4/Proximity Caves | Entered Factory 14980 | -4/Factory | Evolved 2 slots: Propulsion x1, Utility x1 14981 | -4/Factory | Identified exit to Extension 15061 | -4/Factory | Build established: Assassin 15337 | -4/Factory | Repaired Imp. Titanium Leg? 15657 | -4/Factory | Fabricated Assault Drone Bay? 16606 | -4/Factory | Discovered new exit (range 9) 16627 | -4/Factory | Repaired Imp. Kinecellerator 16645 | -4/Factory | Identified exit to Research 17077 | -4/Factory | Fabricated Exp. Optical Array (x1) 17137 | -4/Factory | Identified exit to Upper Caves 17137 | -4/Factory | Identified exit to Armory 17222 | -4/Factory | Build established: Scavenger-Assassin 17384 | -4/Factory | Lost 3 parts (1n1u1w) 17471 | -4/Factory | Found Prototype Slashing Weapon 17471 | -4/Factory | Identified Vibroblade 17683 | -4/Factory | Spotted B-86 Titan 18055 | -4/Factory | Central database locked down 18158 | -4/Factory | Destroyed 7 combat bots 18220 | -4/Factory | Lost 5 parts (2n3u) 18349 | -4/Factory | Lost 10 parts (1p5n2u2w) 18354 | -4/Factory | Destroyed 11 combat bots 18391 | -4/Factory | Core integrity fell below 50% 18435 | -4/Factory | Lost 5 parts (2n1u2w) 18443 | -4/Factory | System corruption reached 10% 18480 | -4/Factory | First assault squad dispatched 18508 | -4/Factory | Lost 3 parts (1p1n1u) 18625 | -4/Factory | Lost 3 parts (1n2u) 18657 | -4/Factory | Entered Armory 18791 | -4/Armory | Found Fusion Bomb Launcher 18907 | -4/Armory | First assault squad dispatched 19053 | -4/Armory | Found Fusion Bomb Launcher 19610 | -4/Armory | Build established: Scavenger-Gunner 19862 | -4/Armory | Core integrity fell below 20% 19937 | -4/Armory | Lost 12 parts (1p2n5u4w) 20165 | -4/Armory | Identified Transdimensional Reconstructor 20165 | -4/Armory | Warped through subspace to slip node 20165 | -4/Armory | Discovered new exit (range 1) 20165 | -4/Armory | Identified exit to Lab 20166 | -4/Armory | Entered Lab 20168 | -4/Lab | Discovered exit to Research (range 9) 20195 | -4/Lab | Unable to decrypt terminal 20195 | -4/Lab | Opened the door to a hidden lab 20196 | -4/Lab | Gained access to the hidden lab's interior 20202 | -4/Lab | Unable to decrypt terminal 20218 | -4/Lab | Detected by scanners 20229 | -4/Lab | Confronted by A5 20230 | -4/Lab | Found Alien Artifact 20230 | -4/Lab | Identified Integrated Reactor 20230 | -4/Lab | Installed Integrated Reactor, increased core energy generation (+10) 20242 | -4/Lab | System corruption reached 30% 20354 | -4/Lab | Lost 3 parts (2n1u) 20377 | -4/Lab | Destroyed A5 20391 | -4/Lab | Found Prototype Protection 20391 | -4/Lab | Identified Med. Regenerative Plating 20406 | -4/Lab | Found Prototype Hackware 20406 | -4/Lab | Identified Exp. Hacking Suite 20413 | -4/Lab | Found Prototype Hackware 20413 | -4/Lab | Identified Exp. System Shield 20605 | -4/Lab | Found Alien Artifact 20645 | -4/Lab | Found Prototype Hackware 20651 | -4/Lab | Found Prototype Protection 20684 | -4/Lab | Unable to decrypt terminal 20689 | -4/Lab | Build established: Hacker-Mutant 20804 | -4/Lab | Found Prototype Special Weapon 22097 | -4/Lab | Unable to decrypt terminal 22097 | -4/Lab | Unable to decrypt terminal 22420 | -4/Lab | Unable to decrypt terminal 22422 | -4/Lab | Found Alien Artifact 22476 | -4/Lab | Entered Research 22476 | -3/Research | Evolved 2 slots: Propulsion x1, Utility x1 22477 | -3/Research | Identified exit to Research 22667 | -3/Research | Identified LC Capacitor 22677 | -3/Research | Identified Core Regenerator 22677 | -3/Research | Used Core Regenerator, restored core integrity (+134) 22687 | -3/Research | Identified Hvy. Regenerative Plating 22688 | -3/Research | Spotted B-86 Titan 22733 | -3/Research | Identified Gui. Remote Datajack 22798 | -3/Research | Identified Deep Network Scanner 22812 | -3/Research | System corruption reached 10% 22837 | -3/Research | Core integrity fell below 50% 22861 | -3/Research | Lost 21 parts (1p7n7u6w) 23023 | -3/Research | Core integrity fell below 20% 23029 | -3/Research | Released all parts (3) 23031 | -3/Research | Destroyed by S-43 Plague with Heavy Machine Gun Last Messages --------------- 23016_ Hvy. Machine Gun destroyed. 23021_ Slug penetrates Wall. 23022_ Power Sword destroyed. 23022_ Knocked back. 23023_ Penetrated by Slug. 23024_ Slug penetrates Wall. 23026_ Dropped Exp. Myomer Leg. 23027_ Penetrated by Slug. 23027_ Slug penetrates Wall. 23027_ Penetrated by Slug. 23027_ Imp. Target Analyzer destroyed. 23027_ Adv. Signal Interpreter destroyed. 23029_ Released Adv. Target Analyzer. 23029_ Released Adv. Salvage Targeting Computer. 23029_ Released Exp. Optical Array. 23029_ Subatomic Condenser disabled. 23029_ Slug penetrates Wall. 23030_ Slug penetrates Subatomic Condenser. 23031_ Penetrated by Slug. 23031_ Slug penetrates Wall. Map ----- +----------------------------------------------------+ | # ???????????????????# # | | ?????????????????????????????# ! """ + ? | | ?????????????????????????????# """" # ? | | ?????????????????????????????# """" # ? | | ?????????????????????????????# """ # #? | | ????????????????????????????## # #? | | ????????????????????????????#" # #? | | ????????????????????????????## # +? | | ?????????????????????????????# # #? | | ?????????????????????????????##"##"######### #? | | ??????????????????????????????# ############ #? | | ??????????????????????????????# ### # #? | | ??????????????????????????????# #?# # #? | | ??????????????????????????????# #?#""" ! # #? | | ??????????????????????????????# #?#""" / #? | | ??????????????????????????????# #?#""" # #? | | ??????????????????????????????# #?#""" # #? | | ??????????????????????????????# ###""" # #? | | ????????????????????????#######+"## # #? | | ????????????????????????# = # # #? | | ????????????????????????# ss %h ###+#/####^ # | | ????????????????????????# s"""R ;## + | | ????????????????????????# s""" h/h # | | ????????????????????????# s"" # Y #? | | ????????????????????????# h % #? | | ????????????????????????#@ ### ########? | | ????????????????????????# #?# #?????? | | ???????????????????#############;/### #???? | | ?????????????????? #??""" " | | ?????????????????? # """ " | | ?????????????????? + """ | | ?????????????????? # " | | ???????????????????+#############+### #?? " | | ??????????????????????????????? ??# #????" | | ?????????????????????????????? ???# #?????? | | ????????????????????????????? ????# #???????? | | ???????????????????????????? ?????# #???????? | | ??????????????????????????? ??????# #???????? | | ??????????????????????????# ??????# #???????? | | ??????????????????????????# ???????# #???????? | | ??????????????????????????# ????????# #???????? | | ??????????????????????????#?????????#% ##### ### | | ??????????????????????????????????### ^ | | ??????????????????????????????###?# # | | ???????????????????????########"##### | | ???????????????????????# # | | ???????????????????????# # | | ???????????????????????# """ # " " | | ???????????????????????# ! ""T"" # ^ " " | | ??????????????????????## "" "" # ""G"" ## | +----------------------------------------------------+ Best States ------------- Heat Dissipation 66 Energy Generation 48 Energy Capacity 940 Matter Stores 600 Matter Capacity 600 Sight Range 23 Robot Scan Range 18 Terrain Scan Density 10 Jamming Range 14 Power Amplification 40 Additional Mass Support 16 Armor Coverage 825 Resistance: KI 20 Resistance: TH 30 Resistance: EM 25 Core Shielding 40 Point Defense Rating 80 Evasion (%) 57 Targeting Accuracy 16 Target Analysis 11 Recoil Reduction 4 Kinecelleration 40 Salvage Targeting 3 Offensive Hacking 35 Defensive Hacking 16 Item Schematics ----------------- Assault Drone Bay | -5/Zhirov | Free Exp. Heat Sink | -5/Zhirov | Free Exp. Optical Array | -5/Zhirov | Free Imp. Arc Thrower | -5/Zhirov | Free Robot Schematics ------------------ None Fabricated ------------ Assault Drone Bay | x1 | -4/Factory Exp. Optical Array | x1 | -4/Factory Alien Tech Used ----------------- Integrated Dissipator Transdimensional Reconstructor Integrated Reactor LC Capacitor Core Regenerator Achievements -------------- Anyone Home? Challenges ------------ None Game ------ Seed HypervelocityBurstRifle Manual? 0 Play Time 06:38:29 Cumulative 572.0 hours Start 2024.01.13 @ 16:15:29 End 2024.01.17 @ 20:52:31 Sessions 31 Manual Loads 0 Difficulty Rogue Special Mode None Game No. 86 Rogue 69 Adventurer 17 Explorer 0 Win Type - Total 1 Types 1/0/0/0/0/0/0/0/0 Lore% 53 Gallery% 66 Achievement% 55 Wizard Run 0 Options --------- ASCII 0 Keyboard 1 Movement Vi Keybinds 0 Fullscreen 1 Font 18/SmallcapsGlow Map View 76x50 Zoom Use 0% Tactical HUD 1 Map Filters NONE Filters NONE Steam 1 RUN: ad381e2c-6c7f-4e80-aa2f-5d7a5203fac9